bitfinex-derivatives/quotes_BTCF0:USTF0_20241029
["timestamp","ask_amount","ask_price","bid_price","bid_amount"]
[1730230980597,0.3608,72719.0,72706.0,0.19822812]
[1730230980803,0.068762,72718.0,72709.0,0.06877]
[1730230980999,1.69822812,72717.0,72709.0,0.06877]
[1730230981305,0.19822812,72712.0,72705.0,0.02387779]
[1730230981509,0.19822812,72712.0,72700.0,0.068778]
[1730230981510,0.068773,72707.0,72700.0,0.068778]
[1730230981697,0.068773,72706.0,72700.0,0.068778]
[1730230981995,0.19822812,72713.0,72697.0,0.19822812]
[1730230982200,0.068769,72711.0,72697.0,0.19822812]
[1730230982505,1.50092,72717.0,72697.0,0.19822812]
[1730230982506,1.50092,72717.0,72715.0,0.068764]
[1730230982696,0.3608,72719.0,72710.0,0.19822812]
[1730230982999,0.068762,72718.0,72710.0,0.068769]
[1730230983201,0.068765,72715.0,72710.0,0.068769]
[1730230983403,0.19822812,72713.0,72710.0,0.068769]
[1730230983597,0.19822812,72713.0,72712.0,0.05471915]
[1730230984107,1.50084,72716.0,72708.0,0.3608]
[1730230984304,1.50084,72716.0,72713.0,0.12348485]
[1730230984503,1.50084,72716.0,72715.0,0.068765]
[1730230984704,1.50084,72716.0,72715.0,0.12348385]
[1730230984893,1.5,72716.0,72715.0,0.12348385]
[1730230985097,1.5,72716.0,72715.0,0.481325]
[1730230985292,0.19822812,72733.0,72723.0,0.068757]
[1730230985500,0.068751,72730.0,72723.0,0.068757]
[1730230985711,1.8608,72724.0,72723.0,0.068757]
[1730230986003,1.5,72724.0,72723.0,0.1234602]
[1730230986206,1.5,72724.0,72723.0,0.068757]
[1730230986405,0.00206338,72739.0,72738.0,0.068743]
[1730230987205,0.2002915,72739.0,72738.0,0.12344717]
[1730230987398,1.7002915,72739.0,72738.0,0.12344698]
[1730230987602,1.7002915,72739.0,72735.0,0.3608]
[1730230987901,1.7690335,72739.0,72731.0,0.06838021]
[1730230988109,1.7690335,72739.0,72730.0,0.05471013]
[1730230988110,0.19822812,72732.0,72730.0,0.05471013]
[1730230988305,0.19822812,72736.0,72731.0,0.05471013]
[1730230988604,0.19822812,72736.0,72732.0,0.05472394]
[1730230988900,0.068747,72734.0,72731.0,0.05472394]
[1730230989298,0.3608,72738.0,72729.0,0.3608]
[1730230989299,0.19822812,72732.0,72729.0,0.3608]
[1730230989495,0.19822812,72732.0,72730.0,0.05473717]
[1730230990003,0.068749,72731.0,72730.0,0.05473717]
[1730230990407,0.06875,72730.0,72729.0,0.05473717]
[1730230990709,1.56875,72730.0,72729.0,0.05475563]
[1730230991004,1.5,72730.0,72729.0,0.12350652]
[1730230991204,1.5,72730.0,72729.0,0.068751]
[1730230993707,0.068753,72728.0,72723.0,0.068756]
[1730230993900,0.068753,72727.0,72724.0,0.00429951]
[1730230994096,0.19822812,72726.0,72722.0,0.38429067]
[1730230994410,0.068757,72723.0,72722.0,0.02349067]
[1730230994708,0.068763,72717.0,72712.0,0.068767]
[1730230995198,1.568765,72715.0,72710.0,0.068769]
[1730230996907,1.568765,72715.0,72714.0,0.38473909]
[1730230997401,1.5,72715.0,72714.0,0.45780426]
[1730230999903,1.5,72715.0,72714.0,0.45350409]
[1730231000103,1.568765,72715.0,72714.0,0.38903929]
[1730231000713,1.929565,72715.0,72714.0,0.02823929]
[1730231000911,0.068768,72711.0,72704.0,0.06838021]
[1730231001106,2.12779312,72715.0,72685.0,0.3608]
[1730231001107,0.068792,72686.0,72685.0,0.3608]
[1730231001410,0.068794,72684.0,72678.0,0.3608]
[1730231001607,1.568794,72684.0,72678.0,0.3608]
[1730231002013,1.568794,72684.0,72679.0,0.068798]
[1730231002217,1.5,72684.0,72682.0,0.068796]
[1730231002710,1.5,72684.0,72683.0,0.11942824]
[1730231003214,1.568794,72684.0,72683.0,0.11942824]
[1730231003812,2.342354,72684.0,72683.0,0.11942824]
[1730231004014,2.342354,72684.0,72683.0,0.09489633]
[1730231004709,2.466274,72684.0,72683.0,0.09489633]
[1730231006203,2.342354,72684.0,72683.0,0.09489633]
[1730231006408,2.053514,72684.0,72683.0,0.09489633]
[1730231006611,2.466274,72684.0,72683.0,0.09489633]
[1730231007112,1.929594,72684.0,72683.0,0.09489633]
[1730231007617,2.12782212,72684.0,72683.0,0.09489633]
[1730231008808,1.5,72684.0,72683.0,0.16369133]
[1730231009508,1.5,72684.0,72683.0,0.068795]
[1730231010512,0.3608,72688.0,72687.0,0.068791]
[1730231010816,0.42958,72699.0,72698.0,0.068781]
[1730231011010,1.92958,72699.0,72698.0,0.068781]
[1730231011612,1.8608,72699.0,72698.0,0.068781]
[1730231012218,1.5,72699.0,72698.0,0.068781]
[1730231012816,0.3608,72708.0,72698.0,0.6311322]
[1730231013113,0.3608,72708.0,72707.0,0.068772]
[1730231013306,0.3608,72708.0,72701.0,0.3608]
[1730231013515,0.3608,72708.0,72704.0,0.068775]
[1730231013516,0.429572,72708.0,72704.0,0.068775]
[1730231013919,1.568772,72707.0,72704.0,0.068775]
[1730231014621,1.5,72707.0,72704.0,0.068775]
[1730231015411,1.5,72707.0,72701.0,0.3608]
[1730231015609,1.5,72707.0,72703.0,0.068775]
[1730231016017,1.5,72707.0,72701.0,0.3608]
[1730231016220,1.5,72707.0,72704.0,0.068775]
[1730231017319,1.5,72707.0,72706.0,0.068773]
[1730231019322,1.5,72707.0,72706.0,0.0730738]
[1730231019523,1.5,72707.0,72706.0,0.068773]
[1730231019726,1.5,72707.0,72706.0,0.07307382]
[1730231019923,1.45302509,72707.0,72706.0,0.48567382]
[1730231020114,0.3608,72724.0,72706.0,0.48567382]
[1730231020115,0.3608,72724.0,72723.0,0.068757]
[1730231020424,0.3608,72731.0,72719.0,0.06876]
[1730231020425,0.26698212,72726.0,72719.0,0.06876]
[1730231020627,0.19822812,72726.0,72715.0,0.3608]
[1730231020918,1.5,72724.0,72716.0,0.00429991]
[1730231021118,1.5,72724.0,72723.0,0.068757]
[1730231021717,1.5,72724.0,72723.0,0.07305683]
[1730231022520,1.8608,72724.0,72723.0,0.00429983]
[1730231022715,1.5,72724.0,72720.0,0.068759]
[1730231022915,1.5,72724.0,72721.0,0.00429995]
[1730231023119,1.5,72724.0,72721.0,0.068759]
[1730231023325,1.5,72724.0,72715.0,0.38543624]
[1730231023625,1.5,72724.0,72720.0,0.06876]
[1730231024015,1.5,72724.0,72715.0,0.38543624]
[1730231024216,1.5,72724.0,72723.0,0.068757]
[1730231025319,1.5,72724.0,72723.0,0.21535722]
[1730231025720,0.3608,72748.0,72723.0,0.62787722]
[1730231026018,0.068735,72746.0,72738.0,0.068743]
[1730231026220,0.3608,72748.0,72738.0,0.068743]
[1730231026417,0.429534,72748.0,72738.0,0.068743]
[1730231026835,1.8608,72739.0,72738.0,0.068743]
[1730231030131,1.5,72739.0,72738.0,0.068743]
[1730231030325,1.5,72739.0,72738.0,0.22111474]
[1730231031922,1.69822812,72739.0,72738.0,0.15237174]
[1730231032127,0.068743,72738.0,72734.0,0.068746]
[1730231032927,0.068743,72738.0,72734.0,0.09320101]
[1730231033723,0.62777412,72735.0,72734.0,0.02445501]
[1730231033930,0.55902812,72735.0,72719.0,0.3608]
[1730231034225,0.068753,72727.0,72723.0,0.068757]
[1730231034420,1.5008,72728.0,72724.0,0.068756]
[1730231034621,1.568753,72728.0,72724.0,0.068756]
[1730231034927,1.5,72728.0,72725.0,0.068755]
[1730231035532,1.5,72728.0,72727.0,0.068753]
[1730231040426,0.3608,72735.0,72734.0,0.068747]
[1730231040735,0.068749,72732.0,72728.0,0.068752]
[1730231040930,0.06054235,72731.0,72728.0,0.068752]
[1730231041232,0.068749,72732.0,72728.0,0.068752]
[1730231041424,1.5,72730.0,72728.0,0.068752]
[1730231041624,1.5,72730.0,72729.0,0.068751]
[1730231041930,1.56046341,72730.0,72729.0,0.068751]
[1730231042122,1.5,72730.0,72729.0,0.068751]
[1730231049729,1.5,72730.0,72725.0,0.38599618]
[1730231049730,1.5,72730.0,72726.0,0.068753]
[1730231049925,0.13210658,72728.0,72726.0,0.068753]
[1730231050434,1.50088,72730.0,72727.0,0.00429948]
[1730231050638,1.5,72730.0,72725.0,0.38599618]
[1730231050932,1.5,72730.0,72726.0,0.00429949]
[1730231051244,1.5,72730.0,72725.0,0.38599618]
[1730231051424,1.5,72730.0,72728.0,0.068752]
[1730231051735,1.5,72730.0,72726.0,0.00429954]
[1730231051736,1.5,72730.0,72725.0,0.38599618]
[1730231051927,1.5,72730.0,72729.0,0.068751]
[1730231059947,1.63080362,72730.0,72729.0,0.068751]
[1730231060442,1.5611601,72730.0,72729.0,0.068751]
[1730231060836,1.6299101,72730.0,72728.0,0.068752]
[1730231061033,0.13210658,72732.0,72725.0,0.51810276]
[1730231061034,0.068754,72726.0,72725.0,0.02591618]
[1730231061233,0.068764,72716.0,72708.0,0.068771]
[1730231061446,0.26203068,72716.0,72705.0,0.068774]
[1730231061638,2.17489699,72716.0,72705.0,0.068774]
[1730231061843,0.068772,72707.0,72706.0,0.00430082]
[1730231062044,0.19900241,72707.0,72706.0,0.00430085]
[1730231062239,0.19900241,72707.0,72703.0,0.068776]
[1730231062441,0.13023041,72706.0,72703.0,0.068776]
[1730231062638,0.0611601,72705.0,72704.0,0.068775]
[1730231062842,0.05981091,72705.0,72704.0,0.21571258]
[1730231063350,0.3608,72711.0,72704.0,0.62835258]
[1730231063555,0.3608,72711.0,72710.0,0.20087558]
[1730231063740,1.5008,72716.0,72715.0,0.068765]
[1730231063942,1.56852547,72716.0,72715.0,0.068765]
[1730231064741,1.5,72716.0,72710.0,0.49290658]
[1730231064949,0.068766,72714.0,72711.0,0.00430044]
[1730231065251,0.068767,72713.0,72704.0,0.13210658]
[1730231065445,0.3608,72714.0,72704.0,0.13210658]
[1730231065646,0.06877,72710.0,72704.0,0.13210658]
[1730231066050,0.06877,72710.0,72705.0,0.068774]
[1730231066246,0.06877,72710.0,72706.0,0.0043008]
[1730231066447,0.3608,72714.0,72705.0,0.068774]
[1730231066448,0.068771,72709.0,72705.0,0.068774]
[1730231066647,0.068771,72709.0,72706.0,0.0043008]
[1730231066847,0.06730437,72713.0,72706.0,0.068773]
[1730231067449,0.068769,72710.0,72706.0,0.068773]
[1730231067654,1.50092,72716.0,72709.0,0.49290658]
[1730231067853,1.5,72716.0,72715.0,0.068765]
[1730231069263,0.3608,72725.0,72714.0,0.068765]
[1730231069459,0.3608,72729.0,72724.0,0.13210658]
[1730231069664,0.3608,72729.0,72728.0,0.20085858]
[1730231069871,1.5,72729.0,72728.0,0.56165858]
[1730231070066,0.00206326,72735.0,72734.0,0.068747]
[1730231070665,0.00206326,72735.0,72734.0,0.429547]
[1730231071169,1.50206326,72735.0,72734.0,0.58664224]
[1730231072273,1.50206326,72735.0,72734.0,0.51789524]
[1730231072464,1.50206326,72735.0,72734.0,0.3608]
[1730231072773,1.50206326,72735.0,72734.0,0.429547]
[1730231073566,1.50206326,72735.0,72734.0,0.068747]
[1730231074074,1.50206326,72735.0,72730.0,0.13210658]
[1730231074374,1.50206326,72735.0,72732.0,0.068748]
[1730231075567,1.50206326,72735.0,72728.0,0.3608]
[1730231075766,1.50206326,72735.0,72706.0,0.068773]
[1730231075767,0.068756,72725.0,72720.0,0.068759]
[1730231076274,0.068756,72724.0,72720.0,0.068759]
[1730231076476,1.5,72723.0,72717.0,0.00206257]
[1730231076677,1.568758,72723.0,72717.0,0.02631424]
[1730231076868,1.5,72723.0,72721.0,0.068758]
[1730231078282,0.068761,72719.0,72717.0,0.00206257]
[1730231078470,1.50084,72723.0,72717.0,0.13416915]
[1730231078665,0.068759,72721.0,72717.0,0.13416915]
[1730231079175,1.5008,72723.0,72717.0,0.15927015]
[1730231079476,1.5,72723.0,72721.0,0.13210658]
[1730231079780,1.5,72723.0,72722.0,0.068758]
[1730231080681,1.5,72723.0,72722.0,0.20086458]
[1730231082784,1.5,72723.0,72722.0,0.26966458]
[1730231083372,0.00206326,72735.0,72722.0,0.26966458]
[1730231083574,0.05846141,72734.0,72733.0,0.068748]
[1730231083772,0.00206326,72735.0,72734.0,0.13210658]
[1730231084181,0.00206326,72735.0,72734.0,0.20066801]
[1730231084484,1.50206326,72735.0,72734.0,0.20066801]
[1730231084679,1.50206326,72735.0,72734.0,0.13210658]
[1730231084877,1.50206326,72735.0,72734.0,0.20085358]
[1730231086383,1.50206326,72735.0,72734.0,0.2694116]
[1730231087080,1.50206326,72735.0,72734.0,0.20085358]
[1730231087481,1.50206326,72735.0,72733.0,0.3608]
[1730231087675,1.50206326,72735.0,72730.0,0.13210658]
[1730231087676,0.068747,72734.0,72730.0,0.06875]
[1730231087877,0.068747,72734.0,72733.0,0.06855439]
[1730231088082,0.068748,72733.0,72732.0,0.06855439]
[1730231088571,0.00206326,72735.0,72730.0,0.02525444]
[1730231088772,1.5,72731.0,72730.0,0.06875]
[1730231088976,1.5,72731.0,72730.0,0.20085658]
[1730231089580,1.5,72731.0,72730.0,0.28313029]
[1730231089783,1.5,72731.0,72730.0,0.28311609]
[1730231090479,1.5,72731.0,72730.0,0.06875]
[1730231092483,1.5,72731.0,72727.0,0.093314]
[1730231092484,1.5,72731.0,72727.0,0.162067]
[1730231092789,0.068752,72728.0,72727.0,0.093314]
[1730231093379,1.568752,72728.0,72727.0,0.093314]
[1730231093582,1.70085858,72728.0,72727.0,0.093314]
[1730231095281,2.11333858,72728.0,72727.0,0.093314]
[1730231095478,0.068762,72718.0,72717.0,0.00206257]
[1730231096080,0.068762,72718.0,72717.0,0.02636071]
[1730231096285,0.068762,72718.0,72717.0,0.00206257]
[1730231096779,1.568762,72718.0,72717.0,0.00206257]
[1730231100193,1.568762,72718.0,72717.0,0.02678096]
[1730231100489,1.5,72718.0,72717.0,0.02678096]
[1730231100684,1.568762,72718.0,72717.0,0.09554396]
[1730231100890,1.5,72718.0,72717.0,0.09554396]
[1730231101195,1.5,72718.0,72717.0,0.22765054]
[1730231101595,1.5,72718.0,72717.0,0.29619606]
[1730231101793,1.5,72718.0,72717.0,0.09554396]
[1730231102393,0.50343584,72828.0,72734.0,0.068747]
[1730231102394,0.00206326,72735.0,72734.0,0.068747]
[1730231102584,0.00206326,72735.0,72734.0,0.20085358]
[1730231102785,0.3608,72748.0,72742.0,0.068739]
[1730231102984,0.3608,72748.0,72747.0,0.20084058]
[1730231103191,0.00206271,72756.0,72747.0,0.13210658]
[1730231103384,0.00206271,72756.0,72755.0,0.20083358]
[1730231103888,1.50206271,72756.0,72755.0,0.20083358]
[1730231104397,0.3608,72762.0,72761.0,0.068721]
[1730231104594,0.3608,72766.0,72765.0,0.068717]
[1730231104783,0.3608,72766.0,72765.0,0.20082358]
[1730231104979,0.3608,72771.0,72765.0,0.13210658]
[1730231105191,0.3608,72771.0,72762.0,0.06856447]
[1730231105192,0.3608,72771.0,72762.0,0.13210658]
[1730231105495,0.3608,72771.0,72767.0,0.068715]
[1730231105887,1.5,72770.0,72767.0,0.068715]
[1730231106191,1.5,72770.0,72769.0,0.068714]
[1730231106984,0.3608,72778.0,72777.0,0.068706]
[1730231107288,0.3608,72785.0,72784.0,0.068699]
[1730231107491,0.3608,72793.0,72784.0,0.13210658]
[1730231107790,0.3608,72793.0,72792.0,0.13210658]
[1730231107984,1.99290658,72793.0,72784.0,0.28077751]
[1730231108290,0.068692,72792.0,72784.0,0.13210658]
[1730231108490,1.8608,72793.0,72785.0,0.068698]
[1730231110096,1.8608,72793.0,72785.0,0.02421182]
[1730231110097,0.068692,72792.0,72785.0,0.02421182]
[1730231110282,0.068692,72792.0,72783.0,0.19799087]
[1730231110488,0.068693,72791.0,72783.0,0.19799087]
[1730231110991,0.068693,72791.0,72781.0,0.068702]
[1730231110992,0.19799087,72788.0,72773.0,0.3608]
[1730231111296,0.3608,72777.0,72773.0,0.02424152]
[1730231111494,0.068707,72776.0,72768.0,0.12332]
[1730231111700,0.3608,72777.0,72772.0,0.19799087]
[1730231111893,0.068699,72785.0,72777.0,0.068706]
[1730231112088,0.3608,72782.0,72777.0,0.068706]
[1730231112491,0.3608,72782.0,72772.0,0.42951]
[1730231112997,0.3608,72782.0,72777.0,0.19799087]
[1730231113294,0.13263255,72781.0,72780.0,0.26669387]
[1730231113604,0.13263255,72781.0,72780.0,0.40997146]
[1730231113790,0.05527649,72781.0,72780.0,0.40997146]
[1730231113989,1.5,72781.0,72780.0,0.40997146]
[1730231114291,0.3608,72789.0,72780.0,0.82217146]
[1730231114596,0.3608,72789.0,72788.0,0.26668687]
[1730231114989,0.068684,72800.0,72792.0,0.068691]
[1730231115196,0.08018933,72805.0,72796.0,0.19799087]
[1730231115397,0.06868,72805.0,72796.0,0.19799087]
[1730231115593,1.5,72797.0,72796.0,0.19799087]
[1730231115992,1.5,72797.0,72792.0,0.19799087]
[1730231116190,1.5,72797.0,72793.0,0.068691]
[1730231116392,1.5,72797.0,72792.0,0.34507554]
[1730231116597,1.5,72797.0,72787.0,0.3608]
[1730231116598,1.5,72797.0,72796.0,0.26667887]
[1730231117000,1.5,72797.0,72796.0,0.42513507]
[1730231118196,1.5,72797.0,72793.0,0.3608]
[1730231118390,1.5,72797.0,72788.0,0.3608]
[1730231118587,1.5,72797.0,72792.0,0.19799087]
[1730231118786,1.5,72797.0,72793.0,0.06869]
[1730231118787,0.06786587,72796.0,72793.0,0.06869]
[1730231118990,0.06786587,72795.0,72794.0,0.06869]
[1730231119190,0.06786587,72795.0,72793.0,0.14751489]
[1730231119401,1.5008,72797.0,72795.0,0.21620389]
[1730231119590,0.06810981,72796.0,72795.0,0.068689]
[1730231120097,0.03966981,72796.0,72795.0,0.21837766]
[1730231120796,0.068692,72792.0,72788.0,0.3608]
[1730231121393,1.5,72789.0,72788.0,0.3608]
[1730231121798,1.5,72789.0,72785.0,0.3608]
[1730231121799,2.17884587,72789.0,72785.0,0.3608]
[1730231122002,0.068697,72786.0,72785.0,0.3608]
[1730231122300,0.00084,72789.0,72786.0,0.068697]
[1730231122491,0.068694,72790.0,72785.0,0.3608]
[1730231122692,0.068694,72790.0,72785.0,0.38538745]
[1730231122894,0.068688,72796.0,72785.0,0.38538745]
[1730231123098,0.19799087,72794.0,72785.0,0.38538745]
[1730231123293,0.068694,72790.0,72785.0,0.38538745]
[1730231123498,0.19799087,72794.0,72785.0,0.38538745]
[1730231123700,0.068696,72788.0,72785.0,0.38538745]
[1730231123902,1.5,72786.0,72785.0,0.38538745]
[1730231124512,0.3608,72798.0,72793.0,0.068691]
[1730231124797,0.3608,72798.0,72793.0,0.26668187]
[1730231125394,1.5,72797.0,72793.0,0.26668187]
[1730231125997,1.5,72797.0,72788.0,0.19799087]
[1730231126204,0.068689,72796.0,72790.0,0.068694]
[1730231127102,1.5008,72797.0,72793.0,0.068691]
[1730231127403,1.5,72797.0,72793.0,0.19799087]
[1730231127707,1.5,72797.0,72796.0,0.068688]
[1730231128399,1.5,72797.0,72796.0,0.01703454]
[1730231128603,1.5,72797.0,72793.0,0.19799087]
[1730231128909,1.5,72797.0,72796.0,0.068688]
[1730231129199,1.55953243,72797.0,72796.0,0.068688]
[1730231130399,0.3608,72806.0,72805.0,0.06868]
[1730231130706,0.42033143,72806.0,72803.0,0.12304]
[1730231131004,1.5,72805.0,72803.0,0.068681]
[1730231131203,0.05953485,72804.0,72803.0,0.068681]
[1730231131399,0.05953485,72804.0,72795.0,0.19799087]
[1730231131604,0.068684,72801.0,72795.0,0.123]
[1730231131907,0.068684,72801.0,72794.0,0.06869]
[1730231131908,0.12745688,72800.0,72796.0,0.14637123]
[1730231132299,0.05953485,72799.0,72796.0,0.14637123]
[1730231132501,0.12789003,72798.0,72797.0,0.068687]
[1730231132798,0.12789003,72798.0,72794.0,0.123]
[1730231132799,0.12790777,72804.0,72800.0,0.068684]
[1730231133003,0.12790777,72803.0,72801.0,0.068683]
[1730231133210,0.12790777,72802.0,72801.0,0.068683]
[1730231135007,0.12790777,72802.0,72798.0,0.1319735]
[1730231135305,0.20848291,72801.0,72799.0,0.14829744]
[1730231135511,0.55739177,72800.0,72799.0,0.14829744]
[1730231135709,0.55739177,72800.0,72778.0,0.3608]
[1730231135710,0.06869,72794.0,72780.0,0.068702]
[1730231135897,0.62068127,72794.0,72779.0,0.1319735]
[1730231136103,0.62068127,72794.0,72778.0,0.3608]
[1730231136104,0.068694,72790.0,72785.0,0.1319735]
[1730231136302,1.5,72787.0,72785.0,0.1319735]
[1730231136511,1.5,72787.0,72784.0,0.068699]
[1730231136909,1.5,72787.0,72785.0,0.068698]
[1730231138507,0.068695,72789.0,72785.0,0.068698]
[1730231138708,0.3608,72794.0,72779.0,0.02414845]
[1730231139008,0.068696,72788.0,72781.0,0.068702]
[1730231139599,1.50092,72793.0,72778.0,0.55951984]
[1730231139804,0.3608,72787.0,72778.0,0.3850835]
[1730231140002,0.068702,72781.0,72778.0,0.3850835]
[1730231141308,0.068699,72785.0,72779.0,0.19799984]
[1730231141615,0.3608,72787.0,72779.0,0.19799984]
[1730231141616,0.068699,72784.0,72779.0,0.26670384]
[1730231143110,0.068701,72783.0,72779.0,0.26670384]
[1730231143309,0.05822812,72782.0,72779.0,0.26670384]
[1730231143514,0.05822812,72781.0,72779.0,0.26670384]
[1730231143714,0.05822812,72780.0,72779.0,0.26670384]
[1730231144011,0.068704,72779.0,72778.0,0.3850835]
[1730231144207,0.19323268,72779.0,72778.0,0.3850835]
[1730231144405,0.12693212,72779.0,72778.0,0.3850835]
[1730231144603,0.12701346,72779.0,72778.0,0.3850835]
[1730231145605,1.62701346,72779.0,72778.0,0.3850835]
[1730231146403,2.03921346,72779.0,72778.0,0.0242835]
[1730231146603,0.068709,72774.0,72773.0,0.00206094]
[1730231146805,0.26670884,72774.0,72773.0,0.00206094]
[1730231147021,0.26670884,72774.0,72756.0,0.3608]
[1730231147022,1.3938746,72774.0,72756.0,0.3608]
[1730231147307,0.068725,72757.0,72756.0,0.38524218]
[1730231147604,0.068725,72757.0,72756.0,0.45396818]
[1730231147605,1.55743945,72757.0,72756.0,0.45396818]
[1730231147820,1.55743945,72757.0,72756.0,0.38524218]
[1730231148818,1.55743945,72757.0,72756.0,0.45396818]
[1730231149008,1.55652514,72757.0,72756.0,0.45396818]
[1730231149912,0.068712,72771.0,72766.0,0.068716]
[1730231150512,0.1995,72778.0,72764.0,0.19799984]
[1730231150712,0.1995,72778.0,72775.0,0.068708]
[1730231151015,0.268205,72778.0,72775.0,0.068708]
[1730231151210,1.5,72776.0,72775.0,0.068708]
[1730231153508,1.5,72776.0,72771.0,0.3608]
[1730231153709,0.068711,72772.0,72771.0,0.3608]
[1730231153910,0.068711,72772.0,72771.0,0.429512]
[1730231154720,0.06871,72774.0,72772.0,0.06871]
[1730231154911,1.568708,72776.0,72773.0,0.068709]
[1730231155218,1.568708,72776.0,72775.0,0.26670784]
[1730231155219,1.5,72776.0,72775.0,0.26670784]
[1730231155815,0.00206186,72783.0,72782.0,0.068701]
[1730231156118,0.429488,72797.0,72790.0,0.068694]
[1730231156312,0.3608,72797.0,72790.0,0.068694]
[1730231156513,0.3608,72797.0,72790.0,0.20068521]
[1730231156715,0.429487,72797.0,72790.0,0.20068521]
[1730231156920,1.8608,72791.0,72786.0,0.068697]
[1730231157113,1.929493,72791.0,72787.0,0.13199121]
[1730231158016,1.8608,72791.0,72787.0,0.13199121]
[1730231158511,1.8608,72791.0,72786.0,0.068697]
[1730231158512,1.8608,72791.0,72788.0,0.19798991]
[1730231159715,1.8608,72791.0,72786.0,0.02474017]
[1730231159912,1.8608,72791.0,72782.0,0.3608]
[1730231159913,0.068699,72784.0,72782.0,0.3608]
[1730231160116,0.068697,72787.0,72782.0,0.3608]
[1730231160415,1.8616,72791.0,72782.0,0.3608]
[1730231160719,0.0687,72783.0,72782.0,0.3608]
[1730231160917,0.0687,72783.0,72782.0,0.38527042]
[1730231161106,0.267,72783.0,72782.0,0.38527042]
[1730231161313,1.767,72783.0,72782.0,0.38527042]
[1730231162719,1.5,72783.0,72782.0,0.45397142]
[1730231163019,0.3608,72791.0,72790.0,0.068694]
[1730231163412,1.8608,72791.0,72790.0,0.068694]
[1730231163815,1.8608,72791.0,72782.0,0.38527042]
[1730231164014,0.19798991,72789.0,72782.0,0.38527042]
[1730231164213,0.0687,72783.0,72782.0,0.38527042]
[1730231165021,1.5687,72783.0,72782.0,0.38527042]
[1730231166018,1.62665852,72783.0,72782.0,0.38527042]
[1730231166924,1.55795852,72783.0,72782.0,0.45397142]
[1730231167120,1.55795852,72783.0,72782.0,0.02447042]
[1730231167423,1.62665852,72783.0,72781.0,0.068702]
[1730231167726,0.05795852,72782.0,72781.0,0.068702]
[1730231167924,0.05795852,72782.0,72775.0,0.19798991]
[1730231168129,0.05795852,72781.0,72778.0,0.068705]
[1730231168318,0.05795852,72780.0,72778.0,0.068705]
[1730231168519,0.05795852,72779.0,72778.0,0.068705]
[1730231169629,1.50088,72783.0,72778.0,0.068705]
[1730231169933,0.068702,72781.0,72778.0,0.068705]
[1730231170132,0.05770012,72780.0,72778.0,0.068705]
[1730231170839,0.05770012,72780.0,72775.0,0.09383566]
[1730231171135,0.05770012,72779.0,72775.0,0.09383566]
[1730231171334,1.5,72778.0,72777.0,0.068706]
[1730231171526,1.55770012,72778.0,72777.0,0.068706]
[1730231172333,1.5,72778.0,72777.0,0.068706]
[1730231173133,0.00206135,72806.0,72777.0,0.4122]
[1730231173336,0.1995,72805.0,72790.0,0.26668391]
[1730231173632,0.00206135,72806.0,72800.0,0.068684]
[1730231173633,0.06659462,72804.0,72800.0,0.068684]
[1730231173840,0.068681,72804.0,72803.0,0.19798991]
[1730231174134,1.5,72804.0,72803.0,0.26667091]
[1730231174324,1.5,72804.0,72791.0,0.1973]
[1730231174325,1.5,72804.0,72792.0,0.19798991]
[1730231174526,1.5,72804.0,72797.0,0.068687]
[1730231174728,0.068685,72799.0,72797.0,0.068687]
[1730231175124,0.068685,72799.0,72792.0,0.19798991]
[1730231175125,0.068682,72803.0,72792.0,0.19798991]
[1730231175434,1.5008,72804.0,72797.0,0.19798991]
[1730231175634,0.068682,72803.0,72801.0,0.068682]
[1730231175834,0.068682,72802.0,72801.0,0.068682]
[1730231176339,1.5,72804.0,72801.0,0.19798991]
[1730231176634,1.5,72804.0,72803.0,0.429481]
[1730231176834,0.19798991,72814.0,72803.0,0.4836]
[1730231177025,0.19798991,72814.0,72811.0,0.3608]
[1730231177221,0.068673,72812.0,72811.0,0.3608]
[1730231177739,1.568673,72812.0,72811.0,0.3608]
[1730231178233,1.5,72812.0,72811.0,0.62746391]
[1730231178529,0.3608,72818.0,72811.0,0.55878991]
[1730231178731,0.3608,72818.0,72817.0,0.26665791]
[1730231178930,0.29664018,72818.0,72817.0,0.26665791]
[1730231179128,0.3608,72826.0,72817.0,0.19798991]
[1730231179429,0.3608,72826.0,72825.0,0.19798991]
[1730231180121,0.00206075,72829.0,72825.0,0.19798991]
[1730231181032,0.00206075,72829.0,72828.0,0.429458]
[1730231181329,0.19740905,72840.0,72830.0,0.068656]
[1730231181544,0.06025253,72839.0,72837.0,0.19798991]
[1730231181746,0.06025253,72839.0,72835.0,0.3608]
[1730231182427,0.3608,72848.0,72835.0,0.3608]
[1730231182428,0.06025253,72838.0,72835.0,0.3608]
[1730231182632,0.3608,72848.0,72839.0,0.068647]
[1730231182837,0.3608,72848.0,72836.0,0.14589264]
[1730231182838,0.12707213,72847.0,72842.0,0.19798991]
[1730231183133,0.05941536,72846.0,72845.0,0.068642]
[1730231183332,0.05941536,72846.0,72845.0,0.19798991]
[1730231183525,0.05941536,72846.0,72844.0,0.3608]
[1730231183723,0.068642,72845.0,72844.0,0.3608]
[1730231184037,0.12836776,72845.0,72844.0,0.3608]
[1730231184337,0.12822886,72845.0,72844.0,0.3608]
[1730231184542,0.068642,72845.0,72844.0,0.3608]
[1730231184929,0.068637,72850.0,72844.0,0.3608]
[1730231185132,0.05954939,72849.0,72844.0,0.51857426]
[1730231185441,0.068635,72853.0,72847.0,0.19798991]
[1730231185639,0.05966007,72852.0,72847.0,0.19798991]
[1730231185936,1.5,72848.0,72847.0,0.19798991]
[1730231186535,1.55964873,72848.0,72847.0,0.19798991]
[1730231186742,0.06864,72847.0,72844.0,0.38531375]
[1730231187036,0.0596134,72846.0,72844.0,0.38531375]
[1730231187236,1.50092,72848.0,72844.0,0.23421509]
[1730231187440,0.068642,72845.0,72844.0,0.23421509]
[1730231187731,0.1280134,72845.0,72844.0,0.23421509]
[1730231188727,1.568642,72845.0,72844.0,0.23421509]